bitfinex/quotes_ETHUSD_20250802
["timestamp","ask_amount","ask_price","bid_price","bid_amount"]
[1754146587059,7.613,3483.2,3483.1,0.4669]
[1754146587261,0.4878,3483.3,3483.1,0.4669]
[1754146587438,4.613,3483.2,3483.1,0.002]
[1754146588067,4.613,3483.2,3483.1,0.4669]
[1754146588566,5.0797,3483.2,3483.1,0.002]
[1754146588863,39.59867,3483.2,3483.1,0.002]
[1754146589634,9.59867,3483.2,3483.1,0.002]
[1754146589870,39.59867,3483.2,3483.1,0.002]
[1754146590769,34.98567,3483.2,3483.1,0.002]
[1754146590932,39.59767,3483.2,3483.1,0.002]
[1754146592063,34.98567,3483.2,3483.1,0.002]
[1754146592233,39.13677,3483.2,3483.1,0.002]
[1754146594067,39.13577,3483.2,3483.1,0.002]
[1754146595569,39.59667,3483.2,3483.1,0.002]
[1754146595774,40.06157,3483.2,3483.1,0.002]
[1754146596157,35.45057,3483.2,3483.1,0.002]
[1754146596360,39.60067,3483.2,3483.1,0.002]
[1754146596571,40.06157,3483.2,3483.1,0.002]
[1754146597339,10.06157,3483.2,3483.1,0.002]
[1754146597673,40.06157,3483.2,3483.1,0.002]
[1754146599300,34.98967,3483.2,3483.1,0.002]
[1754146599443,39.60067,3483.2,3483.1,0.002]
[1754146599739,40.06157,3483.2,3483.1,0.002]
[1754146600460,0.55,3482.9,3482.7,0.002]
[1754146600663,16.53289066,3482.8,3482.7,0.002]
[1754146600908,48.05161711,3482.8,3482.7,0.002]
[1754146601111,46.62161711,3482.8,3482.7,0.002]
[1754146601333,30.0,3482.6,3481.3,0.4649]
[1754146601634,0.55,3481.7,3481.0,0.4649]
[1754146601815,3.55,3481.5,3481.0,0.4649]
[1754146602132,3.0,3481.3,3481.0,0.4649]
[1754146602427,3.0,3481.1,3481.0,0.4649]
[1754146602733,7.61,3481.1,3481.0,0.4649]
[1754146603611,3.0,3481.1,3481.0,0.4649]
[1754146603811,7.609,3481.1,3481.0,0.4649]
[1754146604222,8.4562952,3481.1,3481.0,0.4649]
[1754146606194,3.0,3481.0,3480.6,0.002]
[1754146606392,4.64491025,3480.9,3480.7,0.4649]
[1754146606594,3.0,3480.8,3480.7,0.4649]
[1754146606929,3.0,3480.8,3480.6,0.002]
[1754146607248,4.61,3480.7,3480.6,0.4669]
[1754146609754,4.64591231,3480.7,3480.6,0.4669]
[1754146610052,7.64591231,3480.7,3480.6,0.4669]
[1754146610227,7.61,3480.7,3480.6,0.4669]
[1754146611351,3.0,3480.7,3480.6,0.4669]
[1754146611552,0.472,3480.8,3480.6,0.9389]
[1754146611710,6.909,3481.1,3480.6,0.002]
[1754146611913,4.64490922,3481.0,3480.7,0.4768]
[1754146612542,4.64490922,3481.0,3480.8,0.4768]
[1754146612743,4.64490922,3481.0,3480.6,0.002]
[1754146612960,4.64490922,3481.0,3480.9,0.4768]
[1754146613616,4.609,3481.0,3480.9,0.4768]
[1754146613812,6.909,3481.1,3480.9,0.4768]
[1754146614012,6.909,3481.1,3480.9,0.9408]
[1754146614213,4.608,3481.0,3480.9,0.9408]
[1754146614452,4.608,3481.0,3480.6,0.002]
[1754146614680,4.608,3481.0,3480.6,0.9458894]
[1754146614818,6.909,3481.1,3480.6,0.9458894]
[1754146615018,6.909,3481.1,3480.7,0.9408]
[1754146615019,4.608,3481.0,3480.7,0.9408]
[1754146615263,4.608,3481.0,3480.8,0.9408]
[1754146615472,4.608,3481.0,3480.9,0.4768]
[1754146615769,4.608,3481.0,3480.9,0.9408]
[1754146617367,1.40248667,3482.1,3480.9,10.37769398]
[1754146617521,4.607,3482.0,3481.0,0.9408]
[1754146617716,4.607,3481.9,3481.1,1.99743629]
[1754146618063,4.607,3481.9,3481.2,0.9408]
[1754146618554,4.607,3481.9,3481.3,0.9408]
[1754146618752,1.40248667,3482.1,3481.4,0.9408]
[1754146618950,7.607,3482.0,3481.5,0.9408]
[1754146619159,7.607,3482.0,3481.6,0.9408]
[1754146619336,7.607,3482.0,3481.6,0.464]
[1754146619526,7.607,3482.0,3481.7,0.4768]
[1754146621087,0.03589993,3481.9,3481.8,0.4768]
[1754146621286,0.03589993,3481.9,3481.5,0.4768]
[1754146621441,4.605,3481.8,3481.0,0.4768]
[1754146621646,4.605,3481.8,3481.1,0.464]
[1754146621843,4.605,3481.8,3481.2,0.4768]
[1754146622167,3.476702,3481.7,3480.8,0.4768]
[1754146622367,3.476702,3481.7,3480.5,0.4768]
[1754146622368,0.55,3481.4,3480.5,0.4768]
[1754146622682,5.45640612,3481.3,3480.5,0.4768]
[1754146623078,5.89720612,3481.3,3480.5,0.4768]
[1754146623281,5.8613,3481.3,3480.5,0.4768]
[1754146623649,0.4408,3481.2,3480.5,0.4768]
[1754146623883,4.64090818,3481.1,3480.5,0.4768]
[1754146624484,0.4408,3481.0,3479.9,0.464]
[1754146624785,4.63991025,3480.9,3480.6,0.4788]
[1754146624984,4.604,3480.9,3480.7,0.4768]
[1754146625647,4.604,3480.9,3480.6,0.002]
[1754146625880,4.604,3480.9,3480.6,0.4788]
[1754146626082,4.604,3480.9,3480.7,0.4768]
[1754146627206,4.604,3480.9,3480.6,0.002]
[1754146627384,4.604,3480.9,3480.7,0.4768]
[1754146628068,5.0448,3480.9,3480.6,0.002]
[1754146628274,4.604,3480.9,3480.6,0.4788]
[1754146628474,4.604,3480.9,3480.7,0.4768]
[1754146629181,5.0448,3480.9,3480.6,0.002]
[1754146629587,4.604,3480.9,3480.6,0.002]
[1754146629893,4.603,3480.8,3480.7,0.4768]
[1754146631891,4.603,3480.8,3480.6,0.002]
[1754146632388,4.603,3480.8,3480.7,0.4768]
[1754146632582,5.0438,3480.8,3480.6,0.002]
[1754146632779,0.9017,3480.7,3480.6,0.002]
[1754146632979,0.4408,3480.7,3480.6,0.002]
[1754146633389,0.9017,3480.7,3480.6,0.002]
[1754146633687,0.4408,3480.7,3480.6,0.002]
[1754146634467,0.93761231,3480.7,3480.6,0.002]
[1754146634666,1.54707963,3480.7,3480.6,0.002]
[1754146634987,1.51116732,3480.7,3480.6,0.002]
[1754146635388,1.54707963,3480.7,3480.6,0.002]
[1754146636493,4.54707963,3480.7,3480.6,0.002]
[1754146639806,5.09707963,3480.7,3480.6,0.002]
[1754146640688,35.09707963,3480.7,3480.6,0.002]
[1754146640905,35.06116732,3480.7,3480.6,0.002]
[1754146641107,1.05026732,3480.7,3480.6,0.002]
[1754146641400,5.20946732,3480.7,3480.6,0.4788]
[1754146641621,5.20946732,3480.7,3480.6,0.002]
[1754146642312,4.599,3480.7,3480.6,0.4591]
[1754146642965,3.0,3480.8,3480.6,0.002]
[1754146643166,5.0408,3480.7,3480.6,0.002]
[1754146643404,4.599,3480.7,3480.6,0.002]
[1754146643799,4.599,3480.7,3480.6,0.4591]
[1754146644318,6.91,3480.9,3480.6,0.4591]
[1754146644607,4.599,3480.8,3480.6,0.917]
[1754146644993,4.599,3480.8,3480.7,0.915]
[1754146646069,6.91,3480.9,3480.7,0.915]
[1754146646275,30.0,3481.9,3480.8,0.915]
[1754146646497,30.0,3481.9,3480.6,0.002]
[1754146646498,4.598,3481.8,3480.9,0.915]
[1754146646713,4.598,3481.8,3481.0,0.915]
[1754146646915,4.598,3481.8,3480.6,0.002]
[1754146646916,4.598,3481.8,3481.1,0.915]
[1754146647086,0.21992487,3482.0,3481.2,0.4571]
[1754146647289,0.21992487,3482.0,3481.2,0.915]
[1754146647499,4.597,3481.9,3481.3,0.915]
[1754146647791,0.21992487,3482.0,3481.4,0.915]
[1754146648008,4.597,3481.8,3481.5,0.915]
[1754146648173,0.21992487,3482.0,3481.6,1.96457594]
[1754146648378,1.40248667,3482.1,3481.9,9.43689398]
[1754146648709,0.001,3482.7,3482.0,0.915]
[1754146648906,0.001,3482.7,3482.1,0.915]
[1754146649098,4.597,3482.6,3482.1,0.915]
[1754146649295,4.597,3482.6,3482.2,2.2501894]
[1754146649498,4.597,3482.6,3482.2,1.3351894]
[1754146649704,4.597,3482.6,3482.3,0.915]
[1754146649910,4.597,3482.6,3482.2,1.3351894]
[1754146650079,4.597,3482.6,3482.4,0.915]
[1754146650280,4.597,3482.6,3482.5,0.4571]
[1754146650506,0.001,3482.7,3482.5,0.4571]
[1754146650710,4.596,3482.6,3482.5,0.915]
[1754146650928,4.595,3482.6,3482.5,0.4571]
[1754146652645,0.001,3482.7,3482.5,0.915]
[1754146652941,0.001,3482.7,3482.6,1.0351894]
[1754146653145,0.001,3482.7,3482.6,0.4579]
[1754146653308,0.001,3482.7,3482.2,0.4571]
[1754146653640,0.4418,3482.6,3481.6,0.4579]
[1754146653845,0.49679375,3482.5,3480.6,9.43889398]
[1754146654127,0.49679375,3482.5,3481.3,0.4571]
[1754146654128,5.0358,3482.4,3481.3,0.4571]
[1754146654926,4.594,3482.4,3481.4,0.4579]
[1754146655124,4.594,3482.4,3481.5,0.4571]
[1754146655423,4.594,3482.4,3481.5,0.8486]
[1754146655630,4.594,3482.4,3481.5,0.3915]
[1754146655812,4.594,3482.4,3481.6,0.4571]
[1754146656530,5.0348,3482.3,3481.6,9.43689398]
[1754146656725,0.4428,3482.7,3481.7,1.4856494]
[1754146656894,4.592,3482.6,3481.8,0.4571]
[1754146657799,4.592,3482.5,3481.8,0.915]
[1754146658000,4.592,3482.5,3481.9,0.4571]
[1754146658210,4.592,3482.5,3481.9,0.915]
[1754146658417,4.592,3482.5,3482.0,0.95145494]
[1754146658723,0.001,3482.7,3482.1,0.4571]
[1754146659034,0.001,3482.7,3482.6,9.43689398]
[1754146659235,0.001,3482.7,3482.2,3.0]
[1754146659436,0.001,3482.7,3482.3,0.915]
[1754146659598,0.001,3482.7,3482.4,1.33662649]
[1754146659991,0.001,3482.7,3482.5,0.915]
[1754146660192,0.001,3482.7,3482.5,0.4571]
[1754146660416,0.001,3482.7,3482.6,0.915]
[1754146661038,0.001,3482.7,3482.6,0.4571]
[1754146661242,0.001,3482.7,3482.6,1.09437265]
[1754146661738,0.001,3482.7,3482.6,10.53126663]
[1754146662115,0.001,3482.7,3482.6,1.09437265]
[1754146662319,0.001,3482.7,3482.6,0.63647265]
[1754146662844,0.001,3482.7,3482.6,10.54563255]
[1754146663042,0.001,3482.7,3482.6,10.53126663]
[1754146663417,0.001,3482.7,3482.6,13.53126663]
[1754146664227,0.001,3482.7,3482.6,14.08126663]
[1754146664620,0.001,3482.7,3482.6,14.22446663]
[1754146664816,0.001,3483.1,3482.7,3.55]
[1754146665109,0.001,3483.1,3482.8,1.79180763]
[1754146665439,0.001,3483.1,3482.9,3.0]
[1754146665610,0.001,3483.1,3483.0,0.0143585]
[1754146665810,0.001,3483.1,3483.0,0.915]
[1754146666006,0.001,3483.1,3483.0,0.92935767]
[1754146666240,0.001,3483.1,3483.0,1.2550381]
[1754146666554,0.001,3483.1,3483.0,0.78278043]
[1754146667208,0.001,3483.1,3483.0,1.24068043]
[1754146670737,0.001,3483.1,3483.0,1.2550381]
[1754146670912,0.001,3483.1,3483.0,1.24068043]
[1754146671926,0.001,3483.1,3483.0,0.80498043]
[1754146672446,0.001,3483.1,3483.0,0.8193381]
[1754146672650,0.001,3483.1,3483.0,0.80498043]
[1754146672951,0.001,3483.1,3483.0,0.32568043]
[1754146673115,0.4413,3483.1,3482.6,10.09556663]
[1754146673448,0.001,3483.1,3482.7,3.0]
[1754146673644,0.001,3483.1,3482.7,3.4793]
[1754146673845,0.4403,3483.0,3482.6,3.17937265]
[1754146674013,0.4558,3483.1,3482.7,0.82426726]
[1754146674212,0.4403,3482.9,3482.7,0.82426726]
[1754146674419,0.4403,3482.8,3482.7,0.82426726]
[1754146674637,0.001,3483.1,3482.7,0.82426726]
[1754146674838,0.001,3483.1,3482.8,1.33806399]
[1754146675041,0.4403,3483.0,3482.6,0.17937265]
[1754146675351,0.4403,3482.9,3482.4,0.4793]
[1754146675563,0.001,3483.1,3482.7,3.0]
[1754146675940,0.001,3483.1,3482.8,0.4793]
[1754146676153,0.001,3483.1,3482.8,0.938]
[1754146676670,0.001,3483.1,3482.9,0.938]
[1754146676875,0.001,3483.1,3483.0,0.40812]
[1754146677084,0.001,3483.1,3483.0,0.88742]
[1754146677283,0.001,3483.1,3483.0,1.36047767]
[1754146677883,0.001,3483.1,3483.0,1.91047767]
[1754146678208,0.001,3483.1,3483.0,2.05367767]
[1754146678879,0.001,3483.1,3483.0,1.04497767]
[1754146679181,0.001,3483.1,3483.0,0.88742]
[1754146679831,0.001,3483.1,3483.0,0.95812]
[1754146680039,0.001,3483.1,3483.0,8.46942]
[1754146680265,0.001,3483.1,3483.0,8.0613]
[1754146680458,0.001,3483.1,3483.0,3.0]
[1754146680635,0.001,3483.1,3483.0,3.4793]
[1754146680832,0.001,3483.1,3483.0,3.49365767]
[1754146681036,0.001,3483.1,3483.0,5.30992344]
[1754146681289,0.001,3483.1,3483.0,5.45312344]
[1754146681585,0.001,3483.1,3483.0,5.43876577]
[1754146684743,0.001,3483.1,3483.0,4.98006577]
[1754146684943,0.001,3483.5,3483.1,0.55]
[1754146685186,0.001,3483.9,3483.5,3.55]
[1754146685484,0.001,3483.9,3483.8,0.6932]
[1754146685645,0.001,3484.7,3483.9,0.55]
[1754146685849,0.001,3484.7,3484.6,9.43689398]
[1754146686687,0.001,3484.7,3484.6,12.91619398]
[1754146686852,0.4413,3484.7,3483.9,10.46619398]
[1754146687181,0.8961,3484.7,3484.0,4.5045194]
[1754146687395,0.8961,3484.7,3484.2,3.0]
[1754146687396,0.4403,3484.6,3484.2,3.0]
[1754146687894,0.001,3484.7,3484.5,3.0]
[1754146688095,0.001,3484.7,3484.6,1.29305241]
[1754146688400,0.001,3484.7,3484.6,1.77235241]
[1754146688799,0.001,3484.7,3484.6,1.85737713]
[1754146689004,0.001,3484.9,3484.7,3.55]
[1754146689198,0.001,3484.9,3484.8,8.128]
[1754146689392,0.001,3484.9,3484.8,9.62170524]
[1754146689700,0.001,3484.9,3484.8,10.10100524]
[1754146690537,0.001,3484.9,3484.8,4.49370524]
[1754146690818,0.001,3484.9,3484.8,7.577]
[1754146691023,0.001,3484.9,3484.8,8.0563]
[1754146691374,0.001,3484.9,3484.8,8.6063]
[1754146692016,0.001,3484.9,3484.8,9.065]
[1754146692176,0.001,3485.1,3484.9,0.55]
[1754146692522,0.001,3485.1,3485.0,18.52439398]
[1754146692869,0.001,3485.1,3485.0,19.00369398]
[1754146693479,0.001,3485.1,3485.0,18.45369398]
[1754146693802,0.4413,3485.1,3485.0,17.97339398]
[1754146694673,0.8961,3485.1,3484.6,1.29305241]
[1754146694904,0.8961,3485.1,3484.7,4.575]
[1754146694905,0.8951,3485.0,3484.7,4.575]
[1754146695104,0.4403,3484.9,3484.7,3.0]
[1754146695303,0.8951,3484.9,3484.7,7.574]
[1754146695528,0.4403,3484.8,3484.7,7.574]
[1754146695736,0.4403,3484.8,3484.7,8.46070524]
[1754146696433,0.001,3485.1,3484.7,8.46070524]
[1754146696639,0.001,3485.1,3484.8,9.43689398]
[1754146696842,0.001,3485.1,3484.8,9.91619398]
[1754146697039,0.001,3485.1,3484.9,5.0523]
[1754146697243,0.001,3485.1,3485.0,1.83758992]
[1754146697622,0.001,3485.1,3485.0,2.31688992]
[1754146698221,0.001,3485.3,3485.0,2.8812064]
[1754146698423,0.001,3485.3,3485.2,3.0]
[1754146698641,0.001,3485.3,3485.2,1.01037899]
[1754146699268,0.4413,3485.3,3485.2,1.01037899]
[1754146699638,0.001,3485.3,3485.2,1.01037899]
[1754146699835,0.001,3485.3,3485.0,1.83758992]
[1754146700034,0.4548,3485.2,3485.0,3.0]
[1754146700241,0.8951,3485.1,3484.5,3.0]
[1754146700537,0.4403,3485.0,3484.6,4.572]
[1754146700752,0.4548,3485.1,3484.6,4.572]
[1754146701076,0.4403,3484.9,3484.7,4.572]
[1754146701452,0.8951,3484.9,3484.7,4.572]
[1754146701646,0.4403,3484.8,3484.7,7.572]
[1754146701942,0.9012,3484.8,3484.7,7.572]
[1754146702400,0.9012,3484.8,3484.7,3.0]
[1754146703166,0.9012,3484.8,3484.6,3.0]
[1754146703389,0.9233,3484.7,3483.6,0.21173527]
[1754146703549,0.001,3485.3,3483.7,4.571]
[1754146703550,0.49677212,3484.6,3483.7,4.571]
[1754146703740,0.95917212,3484.6,3483.7,4.571]
[1754146703940,0.95917212,3484.6,3483.6,1.05795292]
[1754146703941,0.9233,3484.5,3483.6,1.05795292]
[1754146704164,0.9233,3484.4,3483.6,3.0]
[1754146704369,0.4624,3484.3,3483.6,3.0]
[1754146705080,0.4624,3484.3,3483.7,0.49043996]
[1754146705239,0.4624,3484.3,3483.8,1.74983339]
[1754146705780,0.9233,3484.2,3483.8,1.74983339]
[1754146705940,0.03586594,3485.2,3483.6,3.0]
[1754146706153,0.9233,3485.1,3483.6,3.0]
[1754146706354,0.9233,3485.0,3483.6,3.0]
[1754146706560,0.9233,3484.9,3483.7,0.80471]
[1754146706859,0.95917006,3484.8,3483.7,0.80471]
[1754146707054,0.9233,3484.7,3483.7,0.80471]
[1754146707280,0.9233,3484.6,3483.4,0.4761]
[1754146707486,0.9233,3484.5,3483.4,0.4761]
[1754146707674,0.9233,3484.4,3483.4,0.4761]
[1754146707860,0.9233,3484.3,3483.4,0.4761]
[1754146708060,0.4624,3484.2,3483.5,1.7482994]
[1754146708798,0.4624,3484.2,3483.5,2.2243994]
[1754146709493,0.4624,3484.6,3484.1,9.43689398]
[1754146709795,0.4624,3484.6,3484.2,0.4761]
[1754146710003,0.4624,3484.5,3484.2,0.4761]
[1754146710183,0.4624,3485.1,3484.3,1.48173029]
[1754146710358,0.4624,3485.1,3484.6,9.43689398]
[1754146710554,0.4624,3485.0,3484.6,9.43689398]
[1754146710759,0.4624,3485.0,3484.7,0.4761]
[1754146711195,0.001,3485.3,3484.6,9.43689398]
[1754146711384,0.4634,3485.3,3484.8,0.4761]
[1754146711696,0.4634,3485.3,3485.1,9.43689398]
[1754146711697,0.001,3485.3,3485.1,9.43689398]
[1754146712063,0.001,3485.3,3485.2,0.4761]
[1754146712462,0.001,3485.3,3485.2,0.49041237]
[1754146712663,0.001,3485.3,3485.2,3.93101237]
[1754146712903,0.001,3485.8,3485.3,0.55]
[1754146713105,0.001,3485.8,3485.7,9.43689398]
[1754146713285,0.001,3485.8,3485.7,14.00489398]
[1754146713598,0.001,3485.8,3485.7,5.0441]
[1754146714219,0.001,3485.8,3485.7,6.0347]
[1754146714421,0.001,3485.8,3485.7,7.5818594]
[1754146714609,0.001,3485.8,3485.7,6.5912594]
[1754146715899,0.001,3485.8,3485.7,7.5818594]
[1754146716323,0.001,3485.8,3485.7,6.5912594]
[1754146717459,0.001,3485.8,3485.7,9.5912594]
[1754146717632,0.001,3486.9,3486.4,9.43689398]
[1754146717786,0.001,3486.9,3486.5,0.01428397]
[1754146717987,0.4624,3486.8,3486.4,9.91299398]
[1754146718700,0.001,3486.9,3486.5,1.21380849]
[1754146719107,0.4624,3486.8,3486.5,0.73770849]
[1754146719302,0.4624,3486.7,3486.2,5.0421]
[1754146719507,0.4624,3486.6,3486.2,5.0421]
[1754146719831,0.001,3486.9,3486.2,5.0421]
[1754146719832,0.4624,3486.5,3486.2,4.566]
[1754146720135,0.4624,3486.4,3486.2,4.566]
[1754146720726,0.4624,3486.4,3485.9,9.91299398]
[1754146720908,0.4624,3486.3,3486.0,4.565]
[1754146721113,0.4609,3486.7,3486.0,4.565]
[1754146721322,0.4624,3486.6,3486.0,5.0411]
[1754146722849,0.4624,3486.6,3485.6,0.4761]
[1754146723050,0.4624,3486.6,3485.9,9.43689398]
[1754146723349,0.4624,3486.6,3486.0,5.0401]
[1754146723655,0.001,3486.9,3486.4,9.43689398]
[1754146724169,0.001,3486.9,3486.5,0.4761]
[1754146724372,0.4634,3486.9,3486.5,0.4761]
[1754146724817,0.4624,3486.8,3486.2,5.0401]
[1754146725017,0.4624,3486.8,3486.2,4.564]
[1754146725319,0.9233,3486.8,3486.2,4.564]
[1754146725517,0.4624,3486.7,3486.2,4.564]
[1754146725736,0.9233,3486.6,3486.2,4.564]
[1754146725914,0.4624,3486.5,3486.0,4.563]
[1754146726113,0.4624,3486.4,3485.8,5.0391]
[1754146726321,0.4624,3486.4,3485.4,12.43689398]
[1754146726322,0.9233,3486.4,3485.4,5.0381]
[1754146726580,0.4624,3486.3,3485.4,5.0381]
[1754146726882,0.9233,3486.3,3485.2,4.562]
[1754146727035,4.562,3486.7,3485.1,4.562]
[1754146727340,0.4609,3486.2,3485.1,3.0]
[1754146727541,0.4624,3486.1,3485.1,3.0]
[1754146727736,0.4609,3486.0,3485.1,3.0]
[1754146727960,0.4624,3485.9,3485.2,0.4761]
[1754146728158,0.4624,3485.9,3485.3,0.80381]
[1754146728942,0.4624,3485.9,3485.4,0.4761]
[1754146729142,0.4624,3486.2,3485.5,9.45119852]
[1754146729346,0.4624,3486.2,3485.5,9.43689398]
[1754146729548,0.4624,3486.2,3485.6,0.4761]
[1754146730061,0.55,3487.4,3485.6,0.4761]
[1754146730268,0.9233,3486.8,3485.6,0.4761]
[1754146730465,0.4624,3486.7,3485.6,0.4761]
[1754146731782,0.4609,3486.6,3485.6,0.4761]
[1754146731977,0.466,3486.5,3485.6,0.4761]
[1754146732283,0.466,3486.5,3485.6,1.99754453]
[1754146733948,0.466,3486.5,3485.7,0.466]
[1754146736183,0.466,3486.8,3485.7,0.466]
[1754146736378,0.466,3486.8,3485.7,1.76183189]
[1754146736687,0.466,3486.8,3485.8,0.466]
[1754146736884,0.001,3486.9,3486.0,9.43689398]
[1754146737046,0.001,3486.8,3486.0,9.43689398]
[1754146737250,0.001,3486.8,3486.1,2.4207194]
[1754146737446,0.001,3486.8,3486.2,0.0142885]
[1754146737646,0.001,3486.8,3486.3,0.466]
[1754146737969,0.001,3486.8,3486.3,0.9283]
[1754146738490,0.001,3486.8,3486.5,9.43689398]
[1754146738654,0.001,3486.8,3486.6,1.130778]
[1754146738991,0.001,3486.9,3486.7,5.2512]
[1754146739285,0.001,3486.9,3486.7,6.19378068]
[1754146739486,0.001,3486.9,3486.7,5.2512]
[1754146739801,0.001,3486.9,3486.8,1.4783]
[1754146740005,0.001,3486.9,3486.8,3.4530172]
[1754146740692,0.14162263,3489.1,3486.9,3.55]
[1754146740988,0.466,3488.8,3487.7,9.43689398]
[1754146741168,0.466,3488.8,3487.8,8.4853]
[1754146741547,0.001,3488.5,3488.2,9.43689398]
[1754146741855,0.001,3488.5,3488.3,1.4096894]
[1754146742401,0.001,3488.5,3488.4,0.466]
[1754146743919,0.001,3488.5,3488.1,0.6092]
[1754146744197,0.001,3488.5,3487.4,0.466]
[1754146744198,0.9269,3488.4,3487.4,0.466]
[1754146744412,0.9269,3488.3,3485.6,6.9]
[1754146744558,30.0,3488.1,3486.1,0.466]
[1754146744749,3.9269,3488.0,3486.7,9.43689398]
[1754146744953,0.466,3487.9,3486.8,0.466]
[1754146745153,0.466,3488.3,3487.3,3.0]
[1754146745393,0.001,3488.5,3487.8,9.43689398]
[1754146745904,0.001,3488.5,3487.9,0.466]
[1754146746254,0.001,3488.5,3488.0,5.5673]
[1754146746598,0.001,3488.5,3488.3,9.43689398]
[1754146746766,0.001,3488.5,3488.4,0.9436894]
[1754146746968,0.001,3488.5,3488.4,1.4096894]
[1754146749762,0.001,3488.5,3488.4,0.9436894]
[1754146750115,0.001,3488.5,3488.1,3.0]
[1754146750321,0.001,3488.5,3488.4,0.466]
[1754146751054,0.467,3488.5,3488.0,4.554]
[1754146751274,0.466,3488.4,3488.0,5.02]
[1754146751478,0.466,3488.4,3488.0,4.554]
[1754146751729,0.001,3488.5,3488.1,1.8650894]
[1754146752092,0.001,3488.5,3488.2,0.466]
[1754146752511,0.001,3488.5,3488.3,0.466]
[1754146752706,0.001,3488.5,3488.4,9.43689398]
[1754146752891,0.001,3488.5,3488.4,1.59619834]
[1754146753095,0.001,3488.5,3488.4,0.466]
[1754146754580,0.001,3488.5,3488.1,4.41333678]
[1754146754784,0.466,3488.4,3488.1,1.3990894]
[1754146755096,0.001,3488.5,3487.9,0.1432]
[1754146755097,0.466,3488.3,3487.9,0.1432]
[1754146755304,0.466,3488.2,3487.8,3.0]
[1754146755492,0.001,3488.5,3487.8,3.3466]
[1754146755693,0.001,3488.5,3487.9,9.91714753]
[1754146755895,0.001,3488.5,3487.9,9.90289398]
[1754146757319,0.001,3488.5,3487.9,9.43689398]
[1754146757491,0.001,3488.5,3488.0,0.466]
[1754146757815,0.001,3488.5,3488.1,1.3249494]
[1754146758014,0.001,3488.5,3488.1,1.33919966]
[1754146758179,0.001,3488.5,3488.2,0.466]
[1754146758378,0.001,3488.5,3488.2,0.48024903]
[1754146758583,0.001,3488.5,3488.3,0.466]
[1754146758825,0.001,3488.5,3488.4,0.19334233]
[1754146759026,0.001,3488.5,3488.4,0.64509494]
[1754146759538,0.467,3488.9,3488.6,0.55]
[1754146759539,0.001,3488.9,3488.6,0.55]
[1754146759685,0.001,3488.9,3488.7,5.4803]
[1754146759881,0.001,3488.9,3488.8,3.0]
[1754146760093,0.001,3488.9,3488.8,5.34065]
[1754146760306,0.001,3488.9,3488.8,5.48385]
[1754146760531,0.466,3490.0,3488.8,4.32835]
[1754146760829,0.466,3490.0,3488.9,9.90289398]
[1754146761115,0.466,3490.0,3489.0,5.018]
[1754146761321,0.466,3490.0,3489.1,1.8317244]
[1754146761501,0.466,3490.0,3489.1,2.2977244]
[1754146761824,0.466,3490.0,3489.2,4.552]
[1754146762493,0.466,3490.0,3489.3,0.4616]
[1754146762887,0.466,3490.0,3489.2,4.552]
[1754146763083,0.466,3490.0,3489.1,1.8317244]
[1754146763084,0.8799,3490.0,3489.1,1.8317244]
[1754146763301,0.4515,3489.9,3489.0,0.4616]
[1754146763910,0.4515,3489.9,3489.0,0.86714568]
[1754146764641,0.4015,3489.9,3489.0,0.86714568]
[1754146764788,0.8154,3489.9,3488.9,4.551]
[1754146764988,0.4139,3489.8,3488.9,4.551]
[1754146765225,0.4139,3489.8,3488.9,0.4616]
[1754146765402,0.4139,3489.8,3489.0,0.432395]
[1754146766724,0.4515,3489.7,3489.0,0.432395]
[1754146766925,0.4515,3489.7,3488.8,0.86235]
[1754146766926,0.4139,3489.6,3488.8,0.86235]
[1754146767129,0.4515,3489.5,3487.9,9.43689398]
[1754146767426,0.4515,3489.5,3488.4,9.43689398]
[1754146767607,0.4515,3489.5,3488.5,0.4616]
[1754146768219,0.4139,3489.4,3488.5,0.4616]
[1754146768524,0.4139,3489.4,3488.5,0.80776]
[1754146769042,0.4515,3489.3,3488.5,0.80776]
[1754146770101,0.4515,3489.3,3488.5,0.34616]
[1754146770249,0.4139,3489.2,3488.5,0.34616]
[1754146770647,0.4515,3489.1,3488.5,0.34616]
[1754146770812,0.4515,3489.1,3487.8,1.1635]
[1754146770813,0.4515,3489.1,3488.1,0.4616]
[1754146771012,0.44972688,3489.0,3487.8,5.0116]
[1754146771262,0.48732791,3488.9,3487.5,4.55]
[1754146771473,0.4139,3488.8,3487.6,1.3986894]
[1754146771759,0.48732996,3488.7,3487.6,1.3986894]
[1754146771918,0.4139,3488.6,3487.0,0.4616]
[1754146772108,30.0,3488.2,3487.0,0.4616]
[1754146772311,0.4515,3488.1,3486.7,0.4616]
[1754146772669,3.0,3487.8,3485.9,0.4616]
[1754146772813,0.03583715,3488.0,3485.7,14.45719398]